[Event "Early-Titled-Tuesday-Blitz-January-23-2024"]
[Site "Chess.com"]
[Date "2024.01.23"]
[Round "11"]
[White "LuminaryHunter"]
[Black "BeardedNM"]
[Result "0-1"]
[WhiteElo "2105"]
[BlackElo "2207"]
[TimeControl "180+1"]
[EndTime "10:08:14 PST"]
[Termination "BeardedNM won by checkmate"]

1. e4 {[%clk 0:03:00.9]} 1... e6 {[%clk 0:02:58.4]} 2. d4 {[%clk 0:02:58.7]}
2... d5 {[%clk 0:02:58.5]} 3. e5 {[%clk 0:02:59.3]} 3... c5 {[%clk 0:02:58.3]}
4. Nf3 {[%clk 0:02:56.1]} 4... Nc6 {[%clk 0:02:57.2]} 5. Be3 {[%clk 0:02:55.4]}
5... cxd4 {[%clk 0:02:52.5]} 6. Bxd4 {[%clk 0:02:55.8]} 6... Nge7 {[%clk
0:02:50.1]} 7. Be2 {[%clk 0:02:40]} 7... Nf5 {[%clk 0:02:36.7]} 8. c3 {[%clk
0:02:39.7]} 8... Be7 {[%clk 0:02:23.9]} 9. Nbd2 {[%clk 0:02:39.1]} 9... O-O
{[%clk 0:02:11.1]} 10. Nf1 {[%clk 0:02:38.8]} 10... Ncxd4 {[%clk 0:02:01.7]} 11.
Nxd4 {[%clk 0:02:32]} 11... Nxd4 {[%clk 0:01:56.8]} 12. Qxd4 {[%clk 0:02:20.9]}
12... Qb6 {[%clk 0:01:55.7]} 13. Qxb6 {[%clk 0:02:19.5]} 13... axb6 {[%clk
0:01:56.6]} 14. Ne3 {[%clk 0:02:08.9]} 14... Bd7 {[%clk 0:01:56.1]} 15. Kd2
{[%clk 0:02:01.5]} 15... Ra5 {[%clk 0:01:34.1]} 16. Nc2 {[%clk 0:02:00]} 16...
Rfa8 {[%clk 0:01:30]} 17. a3 {[%clk 0:01:55.6]} 17... Bg5+ {[%clk 0:01:15.1]}
18. Ke1 {[%clk 0:01:50]} 18... Bf4 {[%clk 0:01:12.6]} 19. g3 {[%clk 0:01:39.1]}
19... Bxe5 {[%clk 0:01:12.4]} 20. f4 {[%clk 0:01:39.7]} 20... Bf6 {[%clk
0:01:07.7]} 21. Kf2 {[%clk 0:01:39.5]} 21... Rc5 {[%clk 0:00:58.6]} 22. Nb4
{[%clk 0:01:35.8]} 22... d4 {[%clk 0:00:55.2]} 23. Rad1 {[%clk 0:01:29.3]} 23...
Bc6 {[%clk 0:00:27.8]} 24. Nxc6 {[%clk 0:01:27.7]} 24... bxc6 {[%clk 0:00:20.6]}
25. cxd4 {[%clk 0:01:27.4]} 25... Rd5 {[%clk 0:00:20.9]} 26. Ke3 {[%clk
0:01:22.8]} 26... Rad8 {[%clk 0:00:19.7]} 27. Bf3 {[%clk 0:01:22.1]} 27... Rxd4
{[%clk 0:00:17.3]} 28. Rxd4 {[%clk 0:01:16.5]} 28... Bxd4+ {[%clk 0:00:16.9]}
29. Ke2 {[%clk 0:01:17]} 29... c5 {[%clk 0:00:16.8]} 30. b3 {[%clk 0:01:16.3]}
30... Bc3 {[%clk 0:00:14.8]} 31. Rd1 {[%clk 0:01:14.9]} 31... Rxd1 {[%clk
0:00:13.4]} 32. Kxd1 {[%clk 0:01:15.3]} 32... Kf8 {[%clk 0:00:13.5]} 33. a4
{[%clk 0:01:14.2]} 33... Ke7 {[%clk 0:00:13.4]} 34. h3 {[%clk 0:01:12.7]} 34...
Bd4 {[%clk 0:00:09.4]} 35. Ke2 {[%clk 0:01:12.5]} 35... Kd6 {[%clk 0:00:09.4]}
36. Kd3 {[%clk 0:01:11.9]} 36... e5 {[%clk 0:00:09.2]} 37. fxe5+ {[%clk
0:01:10.2]} 37... Kxe5 {[%clk 0:00:10.1]} 38. Be4 {[%clk 0:01:09.5]} 38... f5
{[%clk 0:00:09.4]} 39. Bc6 {[%clk 0:01:07.6]} 39... h5 {[%clk 0:00:08.5]} 40.
Be8 {[%clk 0:01:05.3]} 40... Bf2 {[%clk 0:00:08.4]} 41. Bxh5 {[%clk 0:01:04.4]}
41... Bxg3 {[%clk 0:00:08.6]} 42. Bf3 {[%clk 0:01:00.6]} 42... g5 {[%clk
0:00:08.4]} 43. Kc4 {[%clk 0:00:59]} 43... Bf2 {[%clk 0:00:08.1]} 44. Kb5 {[%clk
0:00:58.6]} 44... Kf4 {[%clk 0:00:07.7]} 45. Bd5 {[%clk 0:00:56.1]} 45... g4
{[%clk 0:00:06.1]} 46. hxg4 {[%clk 0:00:54.9]} 46... fxg4 {[%clk 0:00:06.6]} 47.
Kxb6 {[%clk 0:00:51.2]} 47... c4+ {[%clk 0:00:06]} 48. Kb7 {[%clk 0:00:49.9]}
48... c3 {[%clk 0:00:06.2]} 49. a5 {[%clk 0:00:38.1]} 49... c2 {[%clk
0:00:06.4]} 50. a6 {[%clk 0:00:37.7]} 50... c1=Q {[%clk 0:00:06.5]} 51. a7
{[%clk 0:00:37.7]} 51... Bxa7 {[%clk 0:00:06.6]} 52. Kxa7 {[%clk 0:00:37.7]}
52... Qc5+ {[%clk 0:00:06.9]} 53. Ka6 {[%clk 0:00:37.5]} 53... Qxd5 {[%clk
0:00:07.2]} 54. b4 {[%clk 0:00:38.1]} 54... Qb3 {[%clk 0:00:07.3]} 55. b5 {[%clk
0:00:38.4]} 55... Qxb5+ {[%clk 0:00:07.5]} 56. Kxb5 {[%clk 0:00:38.5]} 56... g3
{[%clk 0:00:08]} 57. Kc4 {[%clk 0:00:39.1]} 57... g2 {[%clk 0:00:08.9]} 58. Kd3
{[%clk 0:00:39.6]} 58... g1=Q {[%clk 0:00:09.8]} 59. Kc4 {[%clk 0:00:39.7]}
59... Qg3 {[%clk 0:00:09.9]} 60. Kd5 {[%clk 0:00:40.2]} 60... Qe3 {[%clk
0:00:10.1]} 61. Kc4 {[%clk 0:00:39.9]} 61... Qd2 {[%clk 0:00:10.4]} 62. Kc5
{[%clk 0:00:39.7]} 62... Qd3 {[%clk 0:00:10.9]} 63. Kc6 {[%clk 0:00:39.6]} 63...
Qd4 {[%clk 0:00:11.3]} 64. Kb5 {[%clk 0:00:38.2]} 64... Qc3 {[%clk 0:00:11.6]}
65. Kb6 {[%clk 0:00:38]} 65... Qc4 {[%clk 0:00:11.9]} 66. Kb7 {[%clk 0:00:37.4]}
66... Qc5 {[%clk 0:00:12.2]} 67. Kb8 {[%clk 0:00:35.7]} 67... Qe7 {[%clk
0:00:12.1]} 68. Kc8 {[%clk 0:00:33.6]} 68... Ke5 {[%clk 0:00:13]} 69. Kb8 {[%clk
0:00:34.2]} 69... Kd6 {[%clk 0:00:13.9]} 70. Ka8 {[%clk 0:00:34.8]} 70... Kc6
{[%clk 0:00:14.8]} 71. Kb8 {[%clk 0:00:35.4]} 71... Qb7# {[%clk 0:00:15]} 0-1

[Event "Early-Titled-Tuesday-Blitz-January-23-2024"]
[Site "Chess.com"]
[Date "2024.01.23"]
[Round "11"]
[White "Shuvalov"]
[Black "JonasEilenberg"]
[Result "0-1"]
[WhiteElo "2474"]
[BlackElo "2571"]
[TimeControl "180+1"]
[EndTime "10:08:15 PST"]
[Termination "JonasEilenberg won by resignation"]

1. d4 {[%clk 0:03:00.9]} 1... d5 {[%clk 0:02:43.3]} 2. c4 {[%clk 0:03:00.7]}
2... e6 {[%clk 0:02:43.5]} 3. Nc3 {[%clk 0:03:00.6]} 3... a6 {[%clk 0:02:42.2]}
4. c5 {[%clk 0:02:58.8]} 4... b6 {[%clk 0:02:39.8]} 5. cxb6 {[%clk 0:02:57.9]}
5... c5 {[%clk 0:02:40.7]} 6. dxc5 {[%clk 0:02:53.5]} 6... Bxc5 {[%clk
0:02:41.6]} 7. Na4 {[%clk 0:02:53.3]} 7... Bxb6 {[%clk 0:02:33.3]} 8. Nxb6
{[%clk 0:02:52.2]} 8... Qxb6 {[%clk 0:02:34.2]} 9. Nf3 {[%clk 0:02:51.9]} 9...
Nc6 {[%clk 0:02:32.6]} 10. e3 {[%clk 0:02:51.3]} 10... Nf6 {[%clk 0:02:33.2]}
11. Be2 {[%clk 0:02:50.1]} 11... O-O {[%clk 0:02:33.8]} 12. O-O {[%clk
0:02:50.2]} 12... a5 {[%clk 0:02:34.4]} 13. b3 {[%clk 0:02:44.2]} 13... Ba6
{[%clk 0:02:34.7]} 14. Bb2 {[%clk 0:02:42.6]} 14... Ne4 {[%clk 0:02:19]} 15. Rc1
{[%clk 0:02:33.8]} 15... a4 {[%clk 0:02:17]} 16. Nd4 {[%clk 0:02:27.2]} 16...
Bxe2 {[%clk 0:01:59.7]} 17. Qxe2 {[%clk 0:02:24.8]} 17... Nb4 {[%clk 0:01:59.9]}
18. a3 {[%clk 0:02:07.2]} 18... Na6 {[%clk 0:01:51.8]} 19. b4 {[%clk 0:02:03]}
19... Rfc8 {[%clk 0:01:52.4]} 20. Qg4 {[%clk 0:01:54.3]} 20... Nf6 {[%clk
0:01:39.3]} 21. Qh4 {[%clk 0:01:47.8]} 21... Nxb4 {[%clk 0:01:33.6]} 22. axb4
{[%clk 0:01:41.2]} 22... Qxb4 {[%clk 0:01:34.5]} 23. Rb1 {[%clk 0:01:32.4]}
23... a3 {[%clk 0:01:27.7]} 24. Ba1 {[%clk 0:01:31.3]} 24... Qc4 {[%clk
0:01:27.3]} 25. Nf3 {[%clk 0:01:14.8]} 25... a2 {[%clk 0:01:03.9]} 26. Rbd1
{[%clk 0:01:09.2]} 26... Qxh4 {[%clk 0:00:55.7]} 27. Nxh4 {[%clk 0:01:10.1]}
27... Ne4 {[%clk 0:00:56.4]} 28. Nf3 {[%clk 0:01:06.8]} 28... Rab8 {[%clk
0:00:54]} 29. Nd4 {[%clk 0:01:00.3]} 29... Nd6 {[%clk 0:00:43.9]} 30. g3 {[%clk
0:00:57.7]} 30... Nc4 {[%clk 0:00:43.8]} 31. Rc1 {[%clk 0:00:53.7]} 31... Rb7
{[%clk 0:00:41.6]} 32. Rc2 {[%clk 0:00:49]} 32... Ra8 {[%clk 0:00:36]} 33. Rfc1
{[%clk 0:00:46.7]} 33... Rb1 {[%clk 0:00:33]} 34. Kg2 {[%clk 0:00:46.2]} 34...
Rab8 {[%clk 0:00:32]} 35. Ne2 {[%clk 0:00:41.3]} 35... Rxc1 {[%clk 0:00:12.9]}
36. Rxc1 {[%clk 0:00:42.2]} 36... Rb1 {[%clk 0:00:12.8]} 37. Bc3 {[%clk
0:00:29.8]} 37... f6 {[%clk 0:00:11.6]} 38. Kf1 {[%clk 0:00:27.3]} 38... e5
{[%clk 0:00:12]} 39. Ke1 {[%clk 0:00:27.4]} 39... Kf7 {[%clk 0:00:12.4]} 40. Kd1
{[%clk 0:00:27.3]} 40... Na3 {[%clk 0:00:11.5]} 41. f4 {[%clk 0:00:18.6]} 41...
Ke6 {[%clk 0:00:11]} 42. g4 {[%clk 0:00:18.3]} 42... Nc4 {[%clk 0:00:09.7]} 43.
f5+ {[%clk 0:00:12.7]} 43... Kd6 {[%clk 0:00:09.4]} 44. e4 {[%clk 0:00:13.6]}
44... d4 {[%clk 0:00:08.7]} 45. Nxd4 {[%clk 0:00:13.2]} 45... exd4 {[%clk
0:00:08.6]} 46. Bxd4 {[%clk 0:00:14.1]} 46... Nb2+ {[%clk 0:00:06.8]} 47. Bxb2
{[%clk 0:00:13.4]} 47... Rxb2 {[%clk 0:00:07.7]} 48. Ke1 {[%clk 0:00:12]} 48...
Rxh2 {[%clk 0:00:07.7]} 49. Ra1 {[%clk 0:00:11.3]} 49... Rh1+ {[%clk 0:00:07.8]}
50. Kd2 {[%clk 0:00:11.5]} 50... Rxa1 {[%clk 0:00:08.7]} 51. Kd3 {[%clk
0:00:12.1]} 51... Rg1 {[%clk 0:00:09.2]} 52. e5+ {[%clk 0:00:12.4]} 52... Kxe5
{[%clk 0:00:09]} 53. g5 {[%clk 0:00:13.3]} 53... a1=N {[%clk 0:00:08.9]} 0-1

[Event "Early-Titled-Tuesday-Blitz-January-23-2024"]
[Site "Chess.com"]
[Date "2024.01.23"]
[Round "11"]
[White "jhedigm"]
[Black "01Roman"]
[Result "1-0"]
[WhiteElo "2554"]
[BlackElo "2464"]
[TimeControl "180+1"]
[EndTime "10:08:17 PST"]
[Termination "jhedigm won by resignation"]

1. c3 {[%clk 0:03:00.9]} 1... e5 {[%clk 0:02:53.7]} 2. d4 {[%clk 0:02:59.7]}
2... Nc6 {[%clk 0:02:51.3]} 3. dxe5 {[%clk 0:02:58.3]} 3... Nxe5 {[%clk
0:02:52.2]} 4. e4 {[%clk 0:02:58.7]} 4... Nf6 {[%clk 0:02:49.4]} 5. Nd2 {[%clk
0:02:58.8]} 5... d5 {[%clk 0:02:48.8]} 6. f4 {[%clk 0:02:58.8]} 6... Nc6 {[%clk
0:02:45.9]} 7. e5 {[%clk 0:02:58.7]} 7... Nd7 {[%clk 0:02:45]} 8. Ndf3 {[%clk
0:02:56.4]} 8... Nb6 {[%clk 0:02:41.4]} 9. Bb5 {[%clk 0:02:56.1]} 9... Be7
{[%clk 0:02:35.6]} 10. Ne2 {[%clk 0:02:54.7]} 10... O-O {[%clk 0:02:35.1]} 11.
O-O {[%clk 0:02:53.6]} 11... Bc5+ {[%clk 0:02:35.3]} 12. Kh1 {[%clk 0:02:53.5]}
12... Ne7 {[%clk 0:02:35.5]} 13. Ned4 {[%clk 0:02:50.5]} 13... c6 {[%clk
0:02:35.1]} 14. Bd3 {[%clk 0:02:49.8]} 14... f6 {[%clk 0:02:31.5]} 15. Qc2
{[%clk 0:02:39.1]} 15... f5 {[%clk 0:02:27.7]} 16. Be3 {[%clk 0:02:37.8]} 16...
Bxd4 {[%clk 0:02:20.8]} 17. cxd4 {[%clk 0:02:37.1]} 17... Ng6 {[%clk 0:02:15.2]}
18. a4 {[%clk 0:02:35.4]} 18... Nh4 {[%clk 0:02:12.1]} 19. b3 {[%clk 0:02:31.8]}
19... Be6 {[%clk 0:02:08.8]} 20. a5 {[%clk 0:02:30.8]} 20... Nd7 {[%clk
0:02:08]} 21. a6 {[%clk 0:02:28.7]} 21... Nxf3 {[%clk 0:01:58.3]} 22. Rxf3
{[%clk 0:02:23]} 22... b6 {[%clk 0:01:57.1]} 23. Qxc6 {[%clk 0:02:21.1]} 23...
Qe7 {[%clk 0:01:56.7]} 24. Qb5 {[%clk 0:02:10.4]} 24... Rac8 {[%clk 0:01:55.6]}
25. Bd2 {[%clk 0:02:10.8]} 25... Rfe8 {[%clk 0:01:47.8]} 26. Bb4 {[%clk
0:02:10.1]} 26... Qf7 {[%clk 0:01:47.4]} 27. Raf1 {[%clk 0:02:07.9]} 27... Nb8
{[%clk 0:01:47.3]} 28. Qa4 {[%clk 0:02:05.2]} 28... Nc6 {[%clk 0:01:46]} 29. Bd2
{[%clk 0:02:02.8]} 29... Bd7 {[%clk 0:01:46.2]} 30. Qa1 {[%clk 0:02:01.3]} 30...
Qe7 {[%clk 0:01:41.4]} 31. Bb1 {[%clk 0:01:45.5]} 31... Nb4 {[%clk 0:01:35.5]}
32. Qa3 {[%clk 0:01:39]} 32... Nc2 {[%clk 0:01:30.9]} 33. Qb2 {[%clk 0:01:29.9]}
33... Nb4 {[%clk 0:01:25.6]} 34. Rh3 {[%clk 0:01:15.4]} 34... g6 {[%clk
0:01:06]} 35. Rc3 {[%clk 0:01:04.3]} 35... Bb5 {[%clk 0:00:51.5]} 36. Rfc1
{[%clk 0:01:03.4]} 36... Bxa6 {[%clk 0:00:47.4]} 37. Rxc8 {[%clk 0:00:59.6]}
37... Rxc8 {[%clk 0:00:48.3]} 38. Rxc8+ {[%clk 0:00:58.7]} 38... Bxc8 {[%clk
0:00:47.8]} 39. Qc3 {[%clk 0:00:58.3]} 39... a5 {[%clk 0:00:36]} 40. Qxc8+
{[%clk 0:00:56.7]} 40... Kf7 {[%clk 0:00:36.5]} 41. h3 {[%clk 0:00:42.8]} 41...
Qh4 {[%clk 0:00:29.3]} 42. Qd7+ {[%clk 0:00:25.5]} 42... Kf8 {[%clk 0:00:26.3]}
43. e6 {[%clk 0:00:23.6]} 43... Qe7 {[%clk 0:00:22.7]} 44. Bxb4 {[%clk
0:00:21.8]} 44... axb4 {[%clk 0:00:21.4]} 45. Bd3 {[%clk 0:00:19.6]} 45... Qxd7
{[%clk 0:00:16]} 46. exd7 {[%clk 0:00:19.9]} 46... Ke7 {[%clk 0:00:16]} 47. Bb5
{[%clk 0:00:20.6]} 47... Kd8 {[%clk 0:00:14.8]} 48. Kh2 {[%clk 0:00:20.9]} 48...
Ke7 {[%clk 0:00:15]} 49. Kg3 {[%clk 0:00:21.5]} 49... Kd8 {[%clk 0:00:15.2]} 50.
Kh4 {[%clk 0:00:22.1]} 50... h6 {[%clk 0:00:13.9]} 51. g4 {[%clk 0:00:22.5]}
51... fxg4 {[%clk 0:00:11.8]} 52. hxg4 {[%clk 0:00:22.9]} 52... Ke7 {[%clk
0:00:11]} 53. f5 {[%clk 0:00:23.4]} 53... gxf5 {[%clk 0:00:11]} 54. gxf5 {[%clk
0:00:24]} 1-0

[Event "Early-Titled-Tuesday-Blitz-January-23-2024"]
[Site "Chess.com"]
[Date "2024.01.23"]
[Round "11"]
[White "DeArron_Fox"]
[Black "Lady_Nika"]
[Result "0-1"]
[WhiteElo "2447"]
[BlackElo "2559"]
[TimeControl "180+1"]
[EndTime "10:08:18 PST"]
[Termination "Lady_Nika won by checkmate"]

1. d4 {[%clk 0:03:00.9]} 1... d5 {[%clk 0:02:50]} 2. c4 {[%clk 0:03:00.2]} 2...
e6 {[%clk 0:02:49.9]} 3. Nc3 {[%clk 0:03:00.2]} 3... f5 {[%clk 0:02:49.9]} 4.
Nf3 {[%clk 0:02:58.6]} 4... Nf6 {[%clk 0:02:49.9]} 5. Ne5 {[%clk 0:02:55.2]}
5... c6 {[%clk 0:02:49.9]} 6. e3 {[%clk 0:02:55.4]} 6... Bd6 {[%clk 0:02:49.7]}
7. f4 {[%clk 0:02:55.7]} 7... O-O {[%clk 0:02:49.7]} 8. Be2 {[%clk 0:02:54.8]}
8... Bxe5 {[%clk 0:02:49.6]} 9. fxe5 {[%clk 0:02:54.1]} 9... Ne4 {[%clk
0:02:50.1]} 10. O-O {[%clk 0:02:54.6]} 10... Nd7 {[%clk 0:02:47.9]} 11. Bd2
{[%clk 0:02:53.3]} 11... Nxd2 {[%clk 0:02:45.7]} 12. Qxd2 {[%clk 0:02:54.2]}
12... dxc4 {[%clk 0:02:39.6]} 13. Bxc4 {[%clk 0:02:53.8]} 13... Nb6 {[%clk
0:02:39.8]} 14. Bd3 {[%clk 0:02:37.1]} 14... Qg5 {[%clk 0:02:31.6]} 15. Qf2
{[%clk 0:02:33.4]} 15... Bd7 {[%clk 0:02:30.6]} 16. Qf4 {[%clk 0:02:23.8]} 16...
Qe7 {[%clk 0:02:25.8]} 17. e4 {[%clk 0:02:19.2]} 17... g5 {[%clk 0:02:22.3]} 18.
Qg3 {[%clk 0:01:46.3]} 18... f4 {[%clk 0:02:20.8]} 19. Qg4 {[%clk 0:01:45.7]}
19... Qg7 {[%clk 0:02:19.7]} 20. h4 {[%clk 0:01:32]} 20... h6 {[%clk 0:02:15.8]}
21. hxg5 {[%clk 0:01:12.7]} 21... hxg5 {[%clk 0:02:15]} 22. Ne2 {[%clk
0:00:56.7]} 22... Rad8 {[%clk 0:02:13.5]} 23. g3 {[%clk 0:00:55]} 23... fxg3
{[%clk 0:02:10.5]} 24. Nxg3 {[%clk 0:00:55.9]} 24... Bc8 {[%clk 0:02:10.3]} 25.
Nh5 {[%clk 0:00:55.5]} 25... Qh6 {[%clk 0:01:58.5]} 26. Nf6+ {[%clk 0:00:15.8]}
26... Kg7 {[%clk 0:01:57.7]} 27. Kg2 {[%clk 0:00:15.2]} 27... Rxd4 {[%clk
0:01:46.7]} 28. Rh1 {[%clk 0:00:14.5]} 28... Rxf6 {[%clk 0:01:39.9]} 29. exf6+
{[%clk 0:00:02.7]} 29... Qxf6 {[%clk 0:01:39.6]} 30. Rh7+ {[%clk 0:00:02]} 30...
Kg8 {[%clk 0:00:46]} 31. Rf1 {[%clk 0:00:02.4]} 31... Qxf1+ {[%clk 0:00:41.4]}
32. Bxf1 {[%clk 0:00:02.1]} 32... Kxh7 {[%clk 0:00:41.4]} 33. Qxg5 {[%clk
0:00:02.3]} 33... Rd7 {[%clk 0:00:34.7]} 34. Qh5+ {[%clk 0:00:02]} 34... Kg8
{[%clk 0:00:30.1]} 35. Qe8+ {[%clk 0:00:01.7]} 35... Kh7 {[%clk 0:00:28.8]} 36.
e5 {[%clk 0:00:02.6]} 36... Rg7+ {[%clk 0:00:27.7]} 37. Kf3 {[%clk 0:00:02.7]}
37... Rd7 {[%clk 0:00:20.6]} 38. Ke3 {[%clk 0:00:02.5]} 38... Nd5+ {[%clk
0:00:19.9]} 39. Kf3 {[%clk 0:00:02.4]} 39... Nb6 {[%clk 0:00:18.6]} 40. Qh5+
{[%clk 0:00:01.8]} 40... Kg8 {[%clk 0:00:18.2]} 41. Qg5+ {[%clk 0:00:02.5]}
41... Rg7 {[%clk 0:00:17.2]} 42. Qh6 {[%clk 0:00:03.1]} 42... Rf7+ {[%clk
0:00:15.5]} 43. Ke4 {[%clk 0:00:03.7]} 43... Bd7 {[%clk 0:00:12.8]} 44. Bh3
{[%clk 0:00:03.1]} 44... Nd5 {[%clk 0:00:11.8]} 45. Qg6+ {[%clk 0:00:02.4]}
45... Kf8 {[%clk 0:00:11.2]} 46. Qh6+ {[%clk 0:00:02.6]} 46... Ke7 {[%clk
0:00:10.8]} 47. Qh4+ {[%clk 0:00:02.4]} 47... Ke8 {[%clk 0:00:10.7]} 48. Qh8+
{[%clk 0:00:02.1]} 48... Rf8 {[%clk 0:00:11]} 49. Qh5+ {[%clk 0:00:01.8]} 49...
Kd8 {[%clk 0:00:11.3]} 50. Kd4 {[%clk 0:00:01.9]} 50... Rf4+ {[%clk 0:00:10.9]}
51. Kc5 {[%clk 0:00:02.4]} 51... Kc7 {[%clk 0:00:10.8]} 52. Bxe6 {[%clk
0:00:01.1]} 52... b6# {[%clk 0:00:10.5]} 0-1

[Event "Early-Titled-Tuesday-Blitz-January-23-2024"]
[Site "Chess.com"]
[Date "2024.01.23"]
[Round "11"]
[White "Ducke13"]
[Black "Ezov"]
[Result "1-0"]
[WhiteElo "2302"]
[BlackElo "2212"]
[TimeControl "180+1"]
[EndTime "10:08:20 PST"]
[Termination "Ducke13 won on time"]

1. d4 {[%clk 0:02:53.1]} 1... d5 {[%clk 0:02:57.5]} 2. Nf3 {[%clk 0:02:53.1]}
2... c5 {[%clk 0:02:56.5]} 3. g3 {[%clk 0:02:52.9]} 3... Nc6 {[%clk 0:02:55.6]}
4. Bg2 {[%clk 0:02:53.3]} 4... h5 {[%clk 0:02:54.4]} 5. dxc5 {[%clk 0:02:47.1]}
5... h4 {[%clk 0:02:53.2]} 6. Nxh4 {[%clk 0:02:45]} 6... e5 {[%clk 0:02:51.9]}
7. c4 {[%clk 0:02:45]} 7... d4 {[%clk 0:02:48.6]} 8. b4 {[%clk 0:02:43.6]} 8...
Be7 {[%clk 0:02:44.6]} 9. Nf3 {[%clk 0:02:41.3]} 9... e4 {[%clk 0:02:40.3]} 10.
Nfd2 {[%clk 0:02:33.3]} 10... f5 {[%clk 0:02:38]} 11. a3 {[%clk 0:02:15.6]}
11... Nf6 {[%clk 0:02:28.4]} 12. Bb2 {[%clk 0:02:13.1]} 12... Be6 {[%clk
0:02:22.3]} 13. Nb3 {[%clk 0:02:02.3]} 13... Bxc4 {[%clk 0:01:58.1]} 14. Nxd4
{[%clk 0:02:02.1]} 14... Qc7 {[%clk 0:01:35.4]} 15. Nd2 {[%clk 0:02:00.2]} 15...
Nxd4 {[%clk 0:01:28.4]} 16. Nxc4 {[%clk 0:01:52.4]} 16... Ne6 {[%clk 0:01:18.3]}
17. Qb3 {[%clk 0:01:46.6]} 17... O-O-O {[%clk 0:01:10.4]} 18. Nd6+ {[%clk
0:01:26.9]} 18... Rxd6 {[%clk 0:01:05.1]} 19. cxd6 {[%clk 0:01:15.8]} 19... Qxd6
{[%clk 0:01:05.8]} 20. Rd1 {[%clk 0:01:08.5]} 20... Qb6 {[%clk 0:01:04.4]} 21.
Be5 {[%clk 0:01:03]} 21... Rd8 {[%clk 0:00:45.8]} 22. Qc4+ {[%clk 0:00:56.6]}
22... Qc6 {[%clk 0:00:40.2]} 23. Qxc6+ {[%clk 0:00:49]} 23... bxc6 {[%clk
0:00:41.1]} 24. O-O {[%clk 0:00:42.2]} 24... Rd5 {[%clk 0:00:39.9]} 25. Bxf6
{[%clk 0:00:40.6]} 25... Bxf6 {[%clk 0:00:37]} 26. h4 {[%clk 0:00:29.6]} 26...
Kb7 {[%clk 0:00:33.2]} 27. h5 {[%clk 0:00:29.6]} 27... Nd4 {[%clk 0:00:29.1]}
28. e3 {[%clk 0:00:23.1]} 28... Nc2 {[%clk 0:00:24.7]} 29. Bh3 {[%clk
0:00:15.7]} 29... Nxa3 {[%clk 0:00:20.3]} 30. Rxd5 {[%clk 0:00:14.2]} 30... cxd5
{[%clk 0:00:21.2]} 31. Bxf5 {[%clk 0:00:14.5]} 31... Nc2 {[%clk 0:00:18.1]} 32.
Rb1 {[%clk 0:00:11.8]} 32... Kb6 {[%clk 0:00:16.8]} 33. Be6 {[%clk 0:00:12]}
33... Kc6 {[%clk 0:00:15.1]} 34. b5+ {[%clk 0:00:11.6]} 34... Kd6 {[%clk
0:00:14]} 35. Bg8 {[%clk 0:00:12.5]} 35... Na3 {[%clk 0:00:12.2]} 36. Rb3 {[%clk
0:00:11.3]} 36... Nc4 {[%clk 0:00:11.1]} 37. Kg2 {[%clk 0:00:09.6]} 37... Kc5
{[%clk 0:00:08.5]} 38. Rb1 {[%clk 0:00:08.8]} 38... Nd2 {[%clk 0:00:05.7]} 39.
Rd1 {[%clk 0:00:08.9]} 39... Nc4 {[%clk 0:00:04.8]} 40. Rxd5+ {[%clk 0:00:08.9]}
40... Kb4 {[%clk 0:00:03.8]} 41. h6 {[%clk 0:00:08.3]} 41... gxh6 {[%clk
0:00:02.3]} 42. Bh7 {[%clk 0:00:08.5]} 42... Bc3 {[%clk 0:00:02.1]} 43. Bxe4
{[%clk 0:00:08.7]} 43... Nb6 {[%clk 0:00:02]} 44. Rd6 {[%clk 0:00:08]} 44...
Kxb5 {[%clk 0:00:02]} 45. Rxh6 {[%clk 0:00:08.4]} 45... a5 {[%clk 0:00:02.2]}
46. Rh5+ {[%clk 0:00:09]} 46... Kb4 {[%clk 0:00:00.5]} 47. Bc6 {[%clk 0:00:09]}
47... a4 {[%clk 0:00:01.4]} 48. Rb5+ {[%clk 0:00:09.5]} 1-0